fUST/lending_fUST_20251219
["ID","MTS","AMOUNT","RATE_DAILY","PERIOD"]
[399074707,1766103060884,-1497.98,0.00052328,120]
[399074708,1766103060894,-500.0,0.00052328,120]
[399074709,1766103060904,-2437.85,0.00052328,3]
[399074710,1766103060913,-629.41,0.00052328,120]
[399074711,1766103060923,-1535.62,0.00052328,120]
[399074712,1766103060933,-500.0,0.00052328,120]
[399074713,1766103060943,-4331.02,0.00052328,120]
[399074714,1766103060953,-500.0,0.00052328,120]
[399074715,1766103060963,-500.0,0.00052328,120]
[399074716,1766103060973,-641.82,0.00052328,120]
[399074717,1766103060983,-500.0,0.00052328,120]
[399074718,1766103060994,-534.04,0.00052328,120]
[399074719,1766103061003,-534.27,0.00052328,120]
[399074720,1766103061012,-611.77,0.00052328,120]
[399074721,1766103061022,-500.0,0.00052328,120]
[399074722,1766103061032,-500.0,0.00052328,120]
[399074723,1766103061041,-500.0,0.00052328,120]
[399074724,1766103061051,-1000.0,0.00052328,2]
[399074725,1766103061061,-682.25,0.00052328,120]
[399074726,1766103061070,-833.32,0.00052328,120]
[399074727,1766103061081,-735.72,0.00052328,120]
[399074728,1766103061094,-500.0,0.00052328,120]
[399074729,1766103061106,-1167.0,0.00052328,120]
[399074730,1766103061117,-500.0,0.00052328,120]
[399074731,1766103061128,-500.0,0.00052328,120]
[399074732,1766103061140,-1143.45,0.00052328,120]
[399074733,1766103061151,-500.0,0.00052328,120]
[399074734,1766103061160,-500.0,0.00052328,120]
[399074735,1766103061172,-500.0,0.00052328,120]
[399074736,1766103061181,-500.0,0.00052328,120]
[399074737,1766103061191,-572.22,0.00052328,120]
[399074738,1766103061202,-821.33,0.00052328,120]
[399074739,1766103061212,-500.0,0.00052328,120]
[399074740,1766103061222,-1008.83,0.00052328,120]
[399074741,1766103061234,-500.0,0.00052328,120]
[399074742,1766103061245,-158.54796033,0.00052373,120]
[399074743,1766103061255,-439678.5766,0.0005244,120]
[399074744,1766103061266,-713.97283296,0.00052471,2]
[399074745,1766103061276,-4999.99999901,0.000525,120]
[399074746,1766103061286,-500.0,0.00052602,120]
[399074747,1766103061295,-172.47,0.00052602,120]
[399074748,1766103061305,-686.3,0.00052602,120]
[399074749,1766103061315,-849.44,0.00052602,120]
[399074750,1766103061324,-500.0,0.00052602,120]
[399074751,1766103061334,-1097.88,0.00052602,120]
[399074752,1766103061342,-500.0,0.00052602,120]
[399074753,1766103061352,-500.0,0.00052602,120]
[399074754,1766103061361,-530.58,0.00052602,120]
[399074755,1766103061370,-1257.84,0.00052602,120]
[399074756,1766103061380,-500.0,0.00052602,120]
[399074757,1766103061389,-643.27000001,0.00052602,120]
[399074758,1766103061398,-818.83,0.00052602,120]
[399074759,1766103061408,-1000.0,0.00052602,120]
[399074760,1766103061418,-500.0,0.00052602,30]
[399074761,1766103061428,-1022.93,0.00052602,120]
[399074762,1766103061438,-500.0,0.00052602,120]
[399074763,1766103061447,-806.72,0.00052602,120]
[399074764,1766103061457,-500.0,0.00052602,120]
[399074765,1766103061469,-500.0,0.00052602,120]
[399074766,1766103061479,-527.41,0.00052602,120]
[399074767,1766103061488,-520.31,0.00052602,120]
[399074768,1766103061497,-871.78,0.00052602,120]
[399074769,1766103061507,-500.0,0.00052602,120]
[399074770,1766103061516,-500.0,0.00052602,120]
[399074771,1766103061526,-1078.25,0.00052602,120]
[399074772,1766103061535,-500.0,0.00052602,120]
[399074773,1766103061544,-500.0,0.00052602,7]
[399074774,1766103061554,-1005.34,0.00052602,120]
[399074775,1766103061563,-1000.0,0.00052602,2]
[399074776,1766103061572,-703.1,0.00052602,120]
[399074777,1766103061581,-655.27,0.00052602,120]
[399074778,1766103061590,-159.39,0.00052602,120]
[399074779,1766103061599,-500.0,0.00052602,120]
[399074780,1766103061609,-627.9,0.00052602,120]
[399074781,1766103061618,-500.0,0.00052602,120]
[399074782,1766103061627,-500.0,0.00052602,30]
[399074783,1766103061636,-796.43,0.00052602,120]
[399074784,1766103061646,-705.3,0.00052602,120]
[399074785,1766103061656,-500.0,0.00052602,120]
[399074786,1766103061665,-357.8049478,0.00052602,120]
[399074787,1766103061674,-704.94,0.00052602,21]
[399074788,1766103061683,-802.08,0.00052602,120]
[399074789,1766103061693,-500.0,0.00052602,120]
[399074790,1766103061703,-500.0,0.00052602,120]
[399074791,1766103061714,-500.0,0.00052602,120]
[399074792,1766103061723,-657.76,0.00052602,120]
[399074793,1766103061732,-1497.98,0.00052602,120]
[399074794,1766103061743,-500.0,0.00052602,120]
[399074795,1766103061752,-2437.85,0.00052602,3]
[399074796,1766103061762,-629.41,0.00052602,120]
[399074797,1766103061771,-1535.62,0.00052602,120]
[399074798,1766103061781,-500.0,0.00052602,120]
[399074799,1766103061791,-4331.02,0.00052602,120]
[399074800,1766103061804,-500.0,0.00052602,120]
[399074801,1766103061813,-500.0,0.00052602,120]
[399074802,1766103061823,-641.82,0.00052602,120]
[399074803,1766103061833,-500.0,0.00052602,120]
[399074804,1766103061845,-534.04,0.00052602,120]
[399074805,1766103061855,-534.27,0.00052602,120]
[399074806,1766103061865,-611.77,0.00052602,120]
[399074807,1766103061878,-500.0,0.00052602,120]
[399074808,1766103061887,-500.0,0.00052602,120]
[399074809,1766103061897,-500.0,0.00052602,120]
[399074810,1766103061907,-419.27706309,0.00052602,2]
[399074811,1766103061917,-682.25,0.00052602,120]
[399074812,1766103061927,-833.32,0.00052602,120]
[399074813,1766103061938,-735.72,0.00052602,120]
[399074814,1766103061947,-500.0,0.00052602,120]
[399074815,1766103061958,-1167.0,0.00052602,120]
[399074816,1766103061968,-500.0,0.00052602,120]
[399074817,1766103061977,-500.0,0.00052602,120]
[399074818,1766103061987,-1143.45,0.00052602,120]
[399074819,1766103061997,-500.0,0.00052602,120]
[399074820,1766103062006,-500.0,0.00052602,120]
[399074821,1766103062016,-500.0,0.00052602,120]
[399074822,1766103062026,-629.85217788,0.00052602,120]
[399074823,1766103062035,-572.22,0.00052602,120]
[399074824,1766103062044,-821.33,0.00052602,120]
[399074825,1766103062053,-500.0,0.00052602,120]
[399074826,1766103062062,-1008.83,0.00052602,120]
[399074827,1766103062071,-500.0,0.00052602,120]
[399074828,1766103062080,-1300.0,0.00052603,60]
[399074829,1766103062089,-8012.8696239,0.00052604,28]
[399074830,1766103062099,-282.85518,0.00052632,2]
[399074831,1766103062109,-338.41641089,0.00052689,120]
[399074832,1766103062118,-165.65323134,0.00052689,120]
[399074833,1766103062128,-183.181,0.00052769,97]
[399074834,1766103062137,-500.0,0.00052876,120]
[399074835,1766103062146,-686.3,0.00052876,120]
[399074836,1766103062155,-849.44,0.00052876,120]
[399074837,1766103062164,-500.0,0.00052876,120]
[399074838,1766103062174,-1097.88,0.00052876,120]
[399074839,1766103062183,-500.0,0.00052876,120]
[399074840,1766103062191,-530.58,0.00052876,120]
[399074841,1766103062200,-1257.84,0.00052876,120]
[399074842,1766103062209,-500.0,0.00052876,120]
[399074843,1766103062218,-818.83,0.00052876,120]
[399074844,1766103062227,-1000.0,0.00052876,120]
[399074845,1766103062237,-500.0,0.00052876,30]
[399074846,1766103062246,-1022.93,0.00052876,120]
[399074847,1766103062255,-500.0,0.00052876,120]
[399074848,1766103062264,-806.72,0.00052876,120]
[399074849,1766103062274,-500.0,0.00052876,120]
[399074850,1766103062283,-500.0,0.00052876,120]
[399074851,1766103062293,-527.41,0.00052876,120]
[399074852,1766103062302,-520.31,0.00052876,120]
[399074853,1766103062312,-871.78,0.00052876,120]
[399074854,1766103062321,-500.0,0.00052876,120]
[399074855,1766103062330,-500.0,0.00052876,120]
[399074856,1766103062340,-1078.25,0.00052876,120]
[399074857,1766103062350,-500.0,0.00052876,120]
[399074858,1766103062359,-500.0,0.00052876,7]
[399074859,1766103062369,-1005.34,0.00052876,120]
[399074860,1766103062378,-916.99824686,0.00052876,2]
[399074861,1766103062387,-703.1,0.00052876,120]
[399074862,1766103062397,-655.27,0.00052876,120]
[399074863,1766103062406,-500.0,0.00052876,120]
[399074864,1766103062416,-627.9,0.00052876,120]
[399074865,1766103062426,-500.0,0.00052876,120]
[399074866,1766103062435,-500.0,0.00052876,30]
[399074867,1766103062445,-796.43,0.00052876,120]
[399074868,1766103062458,-705.3,0.00052876,120]
[399074869,1766103062469,-500.0,0.00052876,120]
[399074870,1766103062478,-704.94,0.00052876,21]
[399074871,1766103062488,-802.08,0.00052876,120]
[399074872,1766103062499,-528.78,0.00052876,120]
[399074873,1766103062509,-542.20000001,0.00052876,120]
[399074874,1766103062518,-500.0,0.00052876,120]
[399074875,1766103062528,-657.76,0.00052876,120]
[399074876,1766103062538,-1497.98,0.00052876,120]
[399074877,1766103062549,-500.0,0.00052876,120]
[399074878,1766103062559,-2437.85,0.00052876,3]
[399074879,1766103062568,-629.41,0.00052876,120]
[399074880,1766103062578,-1535.62,0.00052876,120]
[399074881,1766103062587,-500.0,0.00052876,120]
[399074882,1766103062597,-4331.02,0.00052876,120]
[399074883,1766103062607,-500.0,0.00052876,120]
[399074884,1766103062616,-500.0,0.00052876,120]
[399074885,1766103062625,-641.82,0.00052876,120]
[399074886,1766103062635,-500.0,0.00052876,120]
[399074887,1766103062644,-534.04,0.00052876,120]
[399074888,1766103062654,-534.27,0.00052876,120]
[399074889,1766103062663,-611.77,0.00052876,120]
[399074890,1766103062673,-500.0,0.00052876,120]
[399074891,1766103062682,-500.0,0.00052876,120]
[399074892,1766103062691,-326.0,0.00052876,120]
[399074893,1766103062701,-682.25,0.00052876,120]
[399074894,1766103062710,-833.32,0.00052876,120]
[399074895,1766103062720,-735.72,0.00052876,120]
[399074896,1766103062729,-500.0,0.00052876,120]
[399074897,1766103062739,-1167.0,0.00052876,120]
[399074898,1766103062749,-500.0,0.00052876,120]
[399074899,1766103062865,-500.0,0.00052876,120]
[399074900,1766103062875,-1143.45,0.00052876,120]
[399074901,1766103062885,-500.0,0.00052876,120]
[399074902,1766103062895,-500.0,0.00052876,120]
[399074903,1766103062904,-500.0,0.00052876,120]
[399074904,1766103062913,-572.22,0.00052876,120]
[399074905,1766103062923,-821.33,0.00052876,120]
[399074906,1766103062932,-500.0,0.00052876,120]
[399074907,1766103062941,-1008.83,0.00052876,120]
[399074908,1766103062950,-500.0,0.00052876,120]
[399074909,1766103062960,-1000.0,0.00053,120]
[399074910,1766103062969,-616.0,0.00053,120]
[399074911,1766103062978,-740.38982778,0.00053019,2]
[399074912,1766103062988,-338.41641089,0.00053123,120]
[399074913,1766103062997,-165.65323134,0.00053123,120]
[399074914,1766103063006,-500.0,0.0005315,120]
[399074915,1766103063015,-686.3,0.0005315,120]
[399074916,1766103063024,-849.44,0.0005315,120]
[399074917,1766103063033,-500.0,0.0005315,120]
[399074918,1766103063042,-1097.88,0.0005315,120]
[399074919,1766103063051,-500.0,0.0005315,120]
[399074920,1766103063060,-530.58,0.0005315,120]
[399074921,1766103063069,-1257.84,0.0005315,120]
[399074922,1766103063078,-500.0,0.0005315,120]
[399074923,1766103063087,-818.83,0.0005315,120]
[399074924,1766103063096,-1000.0,0.0005315,120]
[399074925,1766103063105,-500.0,0.0005315,30]
[399074926,1766103063115,-1022.93,0.0005315,120]
[399074927,1766103063123,-500.0,0.0005315,120]
[399074928,1766103063132,-806.72,0.0005315,120]
[399074929,1766103063142,-518.59,0.0005315,120]
[399074930,1766103063151,-500.0,0.0005315,120]
[399074931,1766103063160,-527.41,0.0005315,120]
[399074932,1766103063170,-520.31,0.0005315,120]
[399074933,1766103063179,-871.78,0.0005315,120]
[399074934,1766103063189,-500.0,0.0005315,120]
[399074935,1766103063198,-500.0,0.0005315,120]
[399074936,1766103063208,-1078.25,0.0005315,120]
[399074937,1766103063217,-500.0,0.0005315,120]
[399074938,1766103063227,-500.0,0.0005315,7]
[399074939,1766103063236,-1005.34,0.0005315,120]
[399074940,1766103063245,-703.1,0.0005315,120]
[399074941,1766103063254,-655.27,0.0005315,120]
[399074942,1766103063264,-500.0,0.0005315,120]
[399074943,1766103063273,-627.9,0.0005315,120]
[399074944,1766103063283,-500.0,0.0005315,120]
[399074945,1766103063293,-384.12,0.0005315,30]
[399074946,1766103063302,-796.43,0.0005315,120]
[399074947,1766103063312,-705.3,0.0005315,120]
[399074948,1766103063321,-500.0,0.0005315,120]
[399074949,1766103063330,-704.94,0.0005315,21]
[399074950,1766103063339,-802.08,0.0005315,120]
[399074951,1766103063349,-500.0,0.0005315,120]
[399074952,1766103063359,-657.76,0.0005315,120]
[399074953,1766103063368,-1497.98,0.0005315,120]
[399074954,1766103063378,-500.0,0.0005315,120]
[399074955,1766103063387,-2437.85,0.0005315,3]
[399074956,1766103063397,-629.41,0.0005315,120]
[399074957,1766103063406,-1535.62,0.0005315,120]
[399074958,1766103063415,-500.0,0.0005315,120]
[399074959,1766103063424,-4331.02,0.0005315,120]
[399074960,1766103063434,-500.0,0.0005315,120]
[399074961,1766103063443,-641.82,0.0005315,120]
[399074962,1766103063452,-500.0,0.0005315,120]
[399074963,1766103063462,-534.04,0.0005315,120]
[399074964,1766103063472,-534.27,0.0005315,120]
[399074965,1766103063483,-611.77,0.0005315,120]
[399074966,1766103063492,-500.0,0.0005315,120]
[399074967,1766103063502,-500.0,0.0005315,120]
[399074968,1766103063512,-682.25,0.0005315,120]
[399074969,1766103063521,-833.32,0.0005315,120]
[399074970,1766103063532,-735.72,0.0005315,120]
[399074971,1766103063541,-500.0,0.0005315,120]
[399074972,1766103063552,-1167.0,0.0005315,120]
[399074973,1766103063562,-500.0,0.0005315,120]
[399074974,1766103063571,-500.0,0.0005315,120]
[399074975,1766103063581,-1143.45,0.0005315,120]
[399074976,1766103063590,-500.0,0.0005315,120]
[399074977,1766103063600,-500.0,0.0005315,120]
[399074978,1766103063609,-500.0,0.0005315,120]
[399074979,1766103063619,-572.22,0.0005315,120]
[399074980,1766103063628,-821.33,0.0005315,120]
[399074981,1766103063638,-500.0,0.0005315,120]
[399074982,1766103063647,-1008.83,0.0005315,120]
[399074983,1766103063656,-500.0,0.0005315,120]
[399074984,1766103063665,-158.54796033,0.00053163,120]
[399074985,1766103063675,-200.0,0.00053178,120]
[399074986,1766103063687,-681.83,0.000532,2]
[399074987,1766103063697,-337.71246252,0.00053413,2]
[399074988,1766103063707,-500.0,0.00053424,120]
[399074989,1766103063717,-686.3,0.00053424,120]
[399074990,1766103063727,-849.44,0.00053424,120]
[399074991,1766103063736,-569.43340179,0.00053424,120]
[399074992,1766103063746,-1097.88,0.00053424,120]
[399074993,1766103063755,-500.0,0.00053424,120]
[399074994,1766103063764,-530.58,0.00053424,120]
[399074995,1766103063774,-1257.84,0.00053424,120]
[399074996,1766103063783,-500.0,0.00053424,120]
[399074997,1766103063793,-818.83,0.00053424,120]
[399074998,1766103063806,-1037.11182741,0.00053424,120]
[399074999,1766103063816,-266.62,0.00053424,30]
[399075000,1766103063825,-1022.93,0.00053424,120]
[399075001,1766103063834,-500.0,0.00053424,120]
[399075002,1766103063843,-806.72,0.00053424,120]
[399075003,1766103063853,-500.0,0.00053424,120]
[399075004,1766103063862,-527.41,0.00053424,120]
[399075005,1766103063872,-520.31,0.00053424,120]
[399075006,1766103063882,-871.78,0.00053424,120]
[399075007,1766103063891,-500.0,0.00053424,120]
[399075008,1766103063901,-500.0,0.00053424,120]
[399075009,1766103063910,-1078.25,0.00053424,120]
[399075010,1766103063920,-500.0,0.00053424,120]
[399075011,1766103063929,-500.0,0.00053424,7]
[399075012,1766103063938,-1005.34,0.00053424,120]
[399075013,1766103063948,-703.1,0.00053424,120]
[399075014,1766103063957,-655.27,0.00053424,120]
[399075015,1766103063967,-500.0,0.00053424,120]
[399075016,1766103063976,-627.9,0.00053424,120]
[399075017,1766103063987,-500.0,0.00053424,120]
[399075018,1766103063996,-796.43,0.00053424,120]
[399075019,1766103064005,-705.3,0.00053424,120]
[399075020,1766103064014,-500.0,0.00053424,120]
[399075021,1766103064023,-704.94,0.00053424,21]
[399075022,1766103064034,-802.08,0.00053424,120]
[399075023,1766103064045,-500.0,0.00053424,120]
[399075024,1766103064056,-657.76,0.00053424,120]
[399075025,1766103064066,-1497.98,0.00053424,120]
[399075026,1766103064076,-500.0,0.00053424,120]
[399075027,1766103064086,-2437.85,0.00053424,3]
[399075028,1766103064096,-629.41,0.00053424,120]
[399075029,1766103064106,-1535.62,0.00053424,120]
[399075030,1766103064116,-500.0,0.00053424,120]
[399075031,1766103064125,-4331.02,0.00053424,120]
[399075032,1766103064136,-500.0,0.00053424,120]
[399075033,1766103064145,-641.82,0.00053424,120]
[399075034,1766103064154,-500.0,0.00053424,120]
[399075035,1766103064163,-534.04,0.00053424,120]
[399075036,1766103064172,-534.27,0.00053424,120]
[399075037,1766103064181,-611.77,0.00053424,120]
[399075038,1766103064190,-500.0,0.00053424,120]
[399075039,1766103064199,-500.0,0.00053424,120]
[399075040,1766103064208,-682.25,0.00053424,120]
[399075041,1766103064218,-833.32,0.00053424,120]
[399075042,1766103064227,-735.72,0.00053424,120]
[399075043,1766103064236,-170.25487529,0.00053424,120]
[399075044,1766103064245,-1167.0,0.00053424,120]
[399075045,1766103064255,-500.0,0.00053424,120]
[399075046,1766103064264,-500.0,0.00053424,120]
[399075047,1766103064274,-1143.45,0.00053424,120]
[399075048,1766103064283,-500.0,0.00053424,120]
[399075049,1766103064293,-586.71499401,0.00053424,120]
[399075050,1766103064305,-500.0,0.00053424,120]
[399075051,1766103064316,-572.22,0.00053424,120]
[399075052,1766103064325,-821.33,0.00053424,120]
[399075053,1766103064335,-500.0,0.00053424,120]
[399075054,1766103064347,-1008.83,0.00053424,120]
[399075055,1766103064357,-500.0,0.00053424,120]
[399075056,1766103064366,-2159.29771588,0.00053437,2]
[399075057,1766103064376,-338.41641089,0.00053557,120]
[399075058,1766103064386,-165.65323134,0.00053557,120]
[399075059,1766103064395,-696.23537908,0.00053567,2]
[399075060,1766103064405,-500.0,0.00053698,120]
[399075061,1766103064414,-686.3,0.00053698,120]
[399075062,1766103064424,-849.44,0.00053698,120]
[399075063,1766103064433,-1097.88,0.00053698,120]
[399075064,1766103064442,-500.0,0.00053698,120]
[399075065,1766103064451,-530.58,0.00053698,120]
[399075066,1766103064460,-1257.84,0.00053698,120]
[399075067,1766103064469,-500.0,0.00053698,120]
[399075068,1766103064478,-818.83,0.00053698,120]
[399075069,1766103064488,-1022.93,0.00053698,120]
[399075070,1766103064498,-224.80492214,0.00053698,120]
[399075071,1766103064506,-806.72,0.00053698,120]
[399075072,1766103064516,-165.2,0.00053698,120]
[399075073,1766103064525,-527.41,0.00053698,120]
[399075074,1766103064534,-520.31,0.00053698,120]
[399075075,1766103064542,-871.78,0.00053698,120]
[399075076,1766103064551,-500.0,0.00053698,120]
[399075077,1766103064560,-500.0,0.00053698,120]
[399075078,1766103064569,-1078.25,0.00053698,120]
[399075079,1766103064578,-500.0,0.00053698,120]
[399075080,1766103064588,-352.91261444,0.00053698,7]
[399075081,1766103064596,-1005.34,0.00053698,120]
[399075082,1766103064605,-703.1,0.00053698,120]
[399075083,1766103064615,-655.27,0.00053698,120]
[399075084,1766103064625,-500.0,0.00053698,120]
[399075085,1766103064634,-627.9,0.00053698,120]
[399075086,1766103064643,-500.0,0.00053698,120]
[399075087,1766103064652,-796.43,0.00053698,120]
[399075088,1766103064661,-705.3,0.00053698,120]
[399075089,1766103064670,-500.0,0.00053698,120]
[399075090,1766103064679,-704.94,0.00053698,21]
[399075091,1766103064688,-802.08,0.00053698,120]
[399075092,1766103064698,-500.0,0.00053698,120]
[399075094,1766103064708,-657.76,0.00053698,120]
[399075095,1766103064718,-1497.98,0.00053698,120]
[399075096,1766103064727,-500.0,0.00053698,120]
[399075098,1766103064736,-2437.85,0.00053698,3]
[399075099,1766103064746,-629.41,0.00053698,120]
[399075100,1766103064755,-1535.62,0.00053698,120]
[399075101,1766103064764,-500.0,0.00053698,120]
[399075102,1766103064774,-4331.02,0.00053698,120]
[399075103,1766103064783,-500.0,0.00053698,120]
[399075104,1766103064792,-641.82,0.00053698,120]
[399075105,1766103064804,-500.0,0.00053698,120]
[399075106,1766103064813,-534.04,0.00053698,120]
[399075107,1766103064823,-534.27,0.00053698,120]
[399075108,1766103064832,-611.77,0.00053698,120]
[399075109,1766103064842,-500.0,0.00053698,120]
[399075110,1766103064852,-500.0,0.00053698,120]
[399075111,1766103064861,-682.25,0.00053698,120]
[399075112,1766103064870,-833.32,0.00053698,120]
[399075113,1766103064880,-735.72,0.00053698,120]
[399075114,1766103064889,-1167.0,0.00053698,120]
[399075115,1766103064898,-500.0,0.00053698,120]
[399075116,1766103064907,-500.0,0.00053698,120]
[399075117,1766103064917,-1143.45,0.00053698,120]
[399075118,1766103064927,-500.0,0.00053698,120]
[399075119,1766103064936,-500.0,0.00053698,120]
[399075120,1766103064945,-572.22,0.00053698,120]
[399075121,1766103064955,-821.33,0.00053698,120]
[399075122,1766103064965,-319.502798,0.00053698,120]
[399075123,1766103064975,-1008.83,0.00053698,120]
[399075124,1766103064985,-1300.0,0.00053699,60]
[399075125,1766103064994,-158.54796033,0.00053952,120]
[399075126,1766103065004,-500.0,0.00053972,120]
[399075127,1766103065013,-686.3,0.00053972,120]
[399075128,1766103065023,-849.44,0.00053972,120]
[399075129,1766103065032,-1097.88,0.00053972,120]
[399075130,1766103065042,-500.0,0.00053972,120]
[399075131,1766103065051,-530.58,0.00053972,120]
[399075132,1766103065061,-1257.84,0.00053972,120]
[399075133,1766103065071,-500.0,0.00053972,120]
[399075134,1766103065080,-818.83,0.00053972,120]
[399075135,1766103065091,-1022.93,0.00053972,120]
[399075136,1766103065100,-806.72,0.00053972,120]
[399075137,1766103065111,-527.41,0.00053972,120]
[399075138,1766103065120,-520.31,0.00053972,120]
[399075139,1766103065130,-871.78,0.00053972,120]
[399075140,1766103065139,-500.0,0.00053972,120]
[399075141,1766103065148,-500.0,0.00053972,120]
[399075142,1766103065158,-1078.25,0.00053972,120]
[399075143,1766103065167,-500.0,0.00053972,120]
[399075144,1766103065176,-1005.34,0.00053972,120]
[399075145,1766103065186,-703.1,0.00053972,120]
[399075146,1766103065195,-655.27,0.00053972,120]
[399075147,1766103065204,-500.0,0.00053972,120]
[399075148,1766103065217,-627.9,0.00053972,120]
[399075149,1766103065226,-500.0,0.00053972,120]
[399075150,1766103065235,-796.43,0.00053972,120]
[399075151,1766103065245,-705.3,0.00053972,120]
[399075152,1766103065254,-493.41329472,0.00053972,120]
[399075153,1766103065263,-704.94,0.00053972,21]
[399075154,1766103065273,-802.08,0.00053972,120]
[399075155,1766103065282,-500.0,0.00053972,120]
[399075156,1766103065291,-657.76,0.00053972,120]
[399075157,1766103065300,-1497.98,0.00053972,120]
[399075158,1766103065309,-500.0,0.00053972,120]
[399075159,1766103065318,-2437.85,0.00053972,3]
[399075160,1766103065327,-629.41,0.00053972,120]
[399075161,1766103065336,-1535.62,0.00053972,120]
[399075162,1766103065345,-500.0,0.00053972,120]
[399075163,1766103065354,-4331.02,0.00053972,120]
[399075164,1766103065364,-500.0,0.00053972,120]
[399075165,1766103065373,-641.82,0.00053972,120]
[399075166,1766103065383,-394.9,0.00053972,120]
[399075167,1766103065392,-534.04,0.00053972,120]
[399075168,1766103065401,-534.27,0.00053972,120]
[399075169,1766103065411,-611.77,0.00053972,120]
[399075170,1766103065420,-500.0,0.00053972,120]
[399075171,1766103065429,-500.0,0.00053972,120]
[399075172,1766103065439,-682.25,0.00053972,120]
[399075173,1766103065551,-833.32,0.00053972,120]
[399075174,1766103065561,-735.72,0.00053972,120]
[399075175,1766103065571,-1167.0,0.00053972,120]
[399075176,1766103065580,-500.0,0.00053972,120]
[399075177,1766103065590,-307.16,0.00053972,120]
[399075178,1766103065599,-1143.45,0.00053972,120]
[399075179,1766103065609,-587.75,0.00053972,120]
[399075180,1766103065618,-500.0,0.00053972,120]
[399075181,1766103065627,-572.22,0.00053972,120]
[399075182,1766103065637,-821.33,0.00053972,120]
[399075183,1766103065646,-1008.83,0.00053972,120]
[399075184,1766103065656,-338.41641089,0.00053992,120]
[399075185,1766103065666,-165.65323134,0.00053992,120]
[399075186,1766103065675,-1000.0,0.00054,120]
[399075187,1766103065685,-1821.14,0.00054,14]
[399075188,1766103065694,-1483.8046888,0.000541,120]
[399075189,1766103065704,-443.97034533,0.00054246,120]
[399075190,1766103065714,-686.3,0.00054246,120]
[399075191,1766103065724,-849.44,0.00054246,120]
[399075192,1766103065733,-1097.88,0.00054246,120]
[399075193,1766103065743,-500.0,0.00054246,120]
[399075194,1766103065752,-530.58,0.00054246,120]
[399075195,1766103065761,-1257.84,0.00054246,120]
[399075196,1766103065770,-597.68,0.00054246,120]
[399075197,1766103065780,-818.83,0.00054246,120]
[399075198,1766103065790,-1022.93,0.00054246,120]
[399075199,1766103065801,-806.72,0.00054246,120]
[399075200,1766103065813,-527.41,0.00054246,120]
[399075201,1766103065822,-520.31,0.00054246,120]
[399075202,1766103065832,-871.78,0.00054246,120]
[399075203,1766103065842,-500.0,0.00054246,120]
[399075204,1766103065853,-500.0,0.00054246,120]
[399075205,1766103065863,-1078.25,0.00054246,120]
[399075206,1766103065873,-500.0,0.00054246,120]
[399075207,1766103065883,-1005.34,0.00054246,120]
[399075208,1766103065894,-703.1,0.00054246,120]